fUSD/lending_fUSD_20260405
["ID","MTS","AMOUNT","RATE_DAILY","PERIOD"]
[419798375,1775386242458,-5954.16831459,0.0001491,2]
[419798376,1775386242468,-150.0,0.00014911,2]
[419798378,1775386242478,-150.0,0.00014922,2]
[419798380,1775386242488,-8422.99193755,0.00014922,2]
[419798381,1775386242499,-871.95012592,0.00014922,2]
[419798382,1775386242509,-150.0,0.00014923,2]
[419798384,1775386242518,-150.0,0.00014923,2]
[419798385,1775386242528,-2875.92876926,0.00014925,2]
[419798386,1775386242539,-1350.09496082,0.00014925,2]
[419798387,1775386242548,-150.0,0.00014927,2]
[419798388,1775386242559,-150.0,0.00014933,2]
[419798389,1775386242568,-150.0,0.00014933,2]
[419798390,1775386242579,-150.0,0.00014933,2]
[419798391,1775386242590,-215.42,0.00014938,2]
[419798392,1775386242600,-6814.8132402,0.00014942,2]
[419798393,1775386242610,-598.99606082,0.00014944,2]
[419798394,1775386242620,-500.0,0.00014944,2]
[419798395,1775386242630,-500.0,0.00014944,2]
[419798396,1775386242639,-500.0,0.00014944,2]
[419798397,1775386242649,-150.0,0.00014946,2]
[419798398,1775386242659,-202.64993829,0.00014947,2]
[419798399,1775386242670,-500.0,0.00014947,2]
[419798400,1775386242679,-518.73332026,0.00014947,2]
[419798401,1775386242689,-500.0,0.00014947,2]
[419798403,1775386242699,-500.0,0.00014947,2]
[419798405,1775386242709,-500.0,0.00014947,2]
[419798407,1775386242719,-500.0,0.00014947,2]
[419798409,1775386242730,-500.0,0.00014947,2]
[419798410,1775386242742,-500.0,0.00014947,2]
[419798411,1775386242751,-515.7358709,0.00014947,2]
[419798412,1775386242761,-500.0,0.00014947,2]
[419798413,1775386242772,-150.0,0.00014952,2]
[419798414,1775386242782,-150.0,0.00014954,2]
[419798415,1775386242792,-150.0,0.00014954,2]
[419798416,1775386242802,-150.0,0.00014956,2]
[419798417,1775386242814,-1000.0,0.00014956,2]
[419798418,1775386242824,-150.0,0.00014957,2]
[419798419,1775386242835,-150.0,0.0001496,2]
[419798420,1775386242845,-500.0,0.00014961,2]
[419798421,1775386242857,-500.0,0.00014961,2]
[419798422,1775386242867,-500.0,0.00014961,2]
[419798423,1775386242878,-500.0,0.00014961,2]
[419798424,1775386242888,-500.0,0.00014961,2]
[419798425,1775386242898,-150.0,0.00014965,2]
[419798426,1775386242908,-215.42,0.00014965,2]
[419798427,1775386242918,-500.0,0.00014965,2]
[419798428,1775386242928,-500.0,0.00014965,2]
[419798429,1775386242938,-162.72924009,0.00014965,2]
[419798430,1775386242947,-500.0,0.00014965,2]
[419798431,1775386242958,-500.50066882,0.00014965,2]
[419798432,1775386242968,-569.20510167,0.00014965,2]
[419798433,1775386242978,-312.74353669,0.00014965,2]
[419798434,1775386242988,-500.0,0.00014965,2]
[419798435,1775386242997,-500.0,0.00014965,2]
[419798436,1775386243007,-500.0,0.00014965,2]
[419798437,1775386243017,-500.0,0.00014965,2]
[419798438,1775386243027,-210.98153295,0.00014965,2]
[419798439,1775386243037,-150.0,0.00014978,2]
[419798440,1775386243048,-150.0,0.00014984,2]
[419798441,1775386243059,-152.67,0.00014984,2]
[419798442,1775386243069,-150.0,0.00014985,2]
[419798443,1775386243079,-150.0,0.00014985,2]
[419798444,1775386243090,-150.0,0.00014987,2]
[419798445,1775386243100,-150.0,0.00014991,2]
[419798446,1775386243110,-300.0,0.00015,2]
[419798447,1775386243122,-150.0,0.00015,2]
[419798448,1775386243133,-150.0,0.00015,2]
[419798450,1775386243144,-150.0,0.00015002,2]
[419798452,1775386243154,-150.0,0.00015007,2]
[419798454,1775386243164,-152.67,0.00015012,2]
[419798456,1775386243175,-150.0,0.00015013,2]
[419798458,1775386243185,-150.0,0.00015015,2]
[419798459,1775386243195,-150.0,0.00015015,2]
[419798460,1775386243205,-532.40918815,0.00015015,2]
[419798461,1775386243215,-2000.0,0.00015015,2]
[419798462,1775386243225,-500.0,0.00015015,2]
[419798463,1775386243236,-2000.0,0.00015015,2]
[419798464,1775386243247,-150.0,0.00015021,2]
[419798465,1775386243257,-150.0,0.00015022,2]
[419798466,1775386243267,-150.0,0.00015026,2]
[419798467,1775386243277,-6008.55421998,0.00015039,2]
[419798468,1775386243287,-1572.0,0.0001504,2]
[419798469,1775386243296,-162.0,0.0001504,2]
[419798471,1775386243306,-1572.0,0.0001504,2]
[419798473,1775386243317,-150.0,0.0001504,2]
[419798474,1775386243327,-150.0,0.0001504,2]
[419798475,1775386243338,-150.0,0.0001504,2]
[419798476,1775386243348,-150.0,0.00015044,2]
[419798477,1775386243358,-150.0,0.00015046,2]
[419798478,1775386243368,-150.0,0.00015046,2]
[419798479,1775386243379,-150.0,0.00015059,2]
[419798480,1775386243389,-150.0,0.00015061,2]
[419798481,1775386243400,-150.0,0.00015062,2]
[419798482,1775386243420,-150.0,0.00015067,2]
[419798483,1775386243431,-150.0,0.00015067,2]
[419798484,1775386243441,-800.0,0.00015068,2]
[419798485,1775386243451,-150.0,0.00015077,2]
[419798486,1775386243461,-150.0,0.00015077,2]
[419798487,1775386243471,-150.0,0.00015078,2]
[419798488,1775386243481,-150.0,0.00015089,2]
[419798489,1775386243492,-150.0,0.00015093,2]
[419798490,1775386243502,-150.0,0.00015096,2]
[419798491,1775386243512,-150.0,0.00015096,2]
[419798492,1775386243523,-178.0,0.000151,2]
[419798493,1775386243532,-150.0,0.000151,2]
[419798494,1775386243543,-150.0,0.00015108,2]
[419798495,1775386243553,-150.0,0.00015108,2]
[419798496,1775386243563,-150.0,0.00015111,2]
[419798497,1775386243573,-150.0,0.00015115,2]
[419798498,1775386243584,-150.0,0.00015117,2]
[419798499,1775386243594,-150.0,0.0001512,2]
[419798500,1775386243604,-150.0,0.0001513,2]
[419798501,1775386243615,-150.0,0.00015133,2]
[419798502,1775386243625,-150.0,0.00015134,2]
[419798503,1775386243636,-150.0,0.00015138,2]
[419798504,1775386243646,-150.0,0.00015138,2]
[419798505,1775386243657,-155.80569417,0.00015144,2]
[419798506,1775386243667,-150.0,0.00015147,2]
[419798507,1775386243678,-150.0,0.00015153,2]
[419798508,1775386243688,-150.0,0.00015156,2]
[419798509,1775386243698,-150.0,0.00015165,2]
[419798510,1775386243709,-150.0,0.00015169,2]
[419798511,1775386243719,-150.0,0.00015169,2]
[419798512,1775386243730,-150.0,0.00015172,2]
[419798513,1775386243740,-150.0,0.00015172,2]
[419798514,1775386243751,-150.0,0.00015173,2]
[419798515,1775386243761,-150.0,0.00015178,2]
[419798516,1775386243772,-3000.0,0.00015178,2]
[419798517,1775386243782,-1600.0,0.00015178,2]
[419798518,1775386243793,-150.0,0.00015191,2]
[419798519,1775386243803,-3716.17077473,0.00015199,2]
[419798520,1775386243814,-7151.76505981,0.000152,2]
[419798521,1775386243825,-5000.0,0.000152,2]
[419798522,1775386243835,-5000.0,0.000152,2]
[419798523,1775386243845,-5000.0,0.000152,2]
[419798524,1775386243855,-322.47111,0.000152,2]
[419798525,1775386243866,-150.0,0.000152,2]
[419798526,1775386243877,-150.0,0.000152,2]
[419798527,1775386243887,-150.0,0.000152,2]
[419798528,1775386243898,-150.0,0.000152,2]
[419798529,1775386243910,-150.0,0.000152,2]
[419798530,1775386243920,-150.0,0.000152,2]
[419798531,1775386243931,-150.0,0.000152,2]
[419798532,1775386243942,-150.0,0.00015209,2]
[419798533,1775386243952,-150.0,0.00015222,2]
[419798534,1775386243963,-568.42076477,0.00015223,2]
[419798535,1775386243973,-486.70773278,0.00015223,2]
[419798536,1775386243983,-987.50780262,0.00015223,2]
[419798537,1775386243994,-474.12332484,0.00015223,2]
[419798538,1775386244004,-12222.68592807,0.00015223,2]
[419798539,1775386244015,-150.0,0.00015227,2]
[419798540,1775386244026,-150.0,0.00015228,2]
[419798541,1775386244037,-150.0,0.00015228,2]
[419798542,1775386244048,-150.0,0.00015231,2]
[419798543,1775386244059,-150.0,0.00015231,2]
[419798544,1775386244069,-150.0,0.00015235,2]
[419798545,1775386244080,-5368.6149644,0.00015239,2]
[419798546,1775386244090,-2614.28541548,0.00015239,2]
[419798547,1775386244101,-150.0,0.00015244,2]
[419798548,1775386244111,-150.0,0.00015247,2]
[419798549,1775386244122,-4609.0,0.00015249,2]
[419798550,1775386244133,-150.0,0.00015253,2]
[419798551,1775386244481,-150.0,0.00015262,2]
[419798552,1775386244519,-150.0,0.00015262,2]
[419798553,1775386244529,-150.0,0.00015266,2]
[419798554,1775386244541,-150.0,0.00015267,2]
[419798555,1775386244551,-150.0,0.0001527,2]
[419798556,1775386244560,-1000.0,0.00015277,2]
[419798557,1775386244570,-6008.55421998,0.00015278,2]
[419798558,1775386244581,-150.0,0.0001528,2]
[419798559,1775386244591,-150.0,0.00015283,2]
[419798560,1775386244602,-150.0,0.00015285,2]
[419798561,1775386244614,-150.0,0.00015289,2]
[419798562,1775386244624,-150.0,0.00015292,2]
[419798563,1775386244633,-150.0,0.00015292,2]
[419798564,1775386244645,-150.0,0.000153,2]
[419798565,1775386244656,-1000.0,0.00015302,2]
[419798566,1775386244666,-150.0,0.00015304,2]
[419798567,1775386244677,-150.0,0.00015304,2]
[419798568,1775386244687,-150.0,0.00015307,2]
[419798569,1775386244697,-150.0,0.00015311,2]
[419798570,1775386244706,-150.0,0.00015322,2]
[419798571,1775386244717,-150.0,0.00015323,2]
[419798572,1775386244727,-150.0,0.00015323,2]
[419798573,1775386244738,-150.0,0.00015333,2]
[419798574,1775386244747,-150.0,0.00015333,2]
[419798575,1775386244757,-150.0,0.00015338,2]
[419798576,1775386244767,-150.0,0.00015339,2]
[419798577,1775386244777,-150.0,0.00015341,2]
[419798578,1775386244788,-150.0,0.00015354,2]
[419798579,1775386244797,-150.0,0.00015354,2]
[419798580,1775386244807,-150.0,0.00015356,2]
[419798581,1775386244817,-162.0,0.0001536,2]
[419798582,1775386244827,-162.0,0.0001536,2]
[419798583,1775386244836,-150.0,0.0001536,2]
[419798584,1775386244846,-150.0,0.0001536,2]
[419798585,1775386244856,-150.0,0.0001536,2]
[419798586,1775386244866,-469.84,0.00015364,2]
[419798587,1775386244876,-150.0,0.00015374,2]
[419798588,1775386244886,-150.0,0.00015378,2]
[419798589,1775386244897,-150.0,0.00015379,2]
[419798590,1775386244907,-150.0,0.00015385,2]
[419798591,1775386244916,-150.0,0.00015385,2]
[419798592,1775386244926,-150.0,0.00015387,2]
[419798593,1775386244936,-150.0,0.00015393,2]
[419798594,1775386244946,-150.0,0.00015398,2]
[419798595,1775386244955,-1572.0,0.000154,2]
[419798596,1775386244965,-150.0,0.000154,2]
[419798597,1775386244975,-150.0,0.000154,2]
[419798598,1775386244985,-150.0,0.00015409,2]
[419798599,1775386244995,-150.0,0.00015413,2]
[419798600,1775386245005,-150.0,0.00015415,2]
[419798601,1775386245015,-150.0,0.00015415,2]
[419798602,1775386245024,-150.0,0.00015416,2]
[419798603,1775386245034,-6814.8132402,0.00015419,2]
[419798604,1775386245044,-150.0,0.00015422,2]
[419798605,1775386245054,-350.0,0.00015429,2]
[419798606,1775386245064,-150.0,0.00015435,2]
[419798607,1775386245074,-3633.957,0.00015435,2]
[419798608,1775386245083,-1348.652,0.00015435,2]
[419798609,1775386245093,-1052.848,0.00015435,2]
[419798610,1775386245102,-622.0,0.00015435,2]
[419798611,1775386245111,-276.717,0.00015435,2]
[419798612,1775386245121,-1229.18,0.00015435,2]
[419798613,1775386245130,-1047.087,0.00015435,2]
[419798614,1775386245140,-3770.0,0.00015435,2]
[419798615,1775386245150,-6020.0,0.00015435,2]
[419798616,1775386245159,-150.0,0.0001544,2]
[419798617,1775386245169,-150.0,0.00015443,2]
[419798618,1775386245179,-150.0,0.00015444,2]
[419798619,1775386245189,-150.0,0.00015446,2]
[419798620,1775386245199,-150.0,0.00015446,2]
[419798621,1775386245208,-150.0,0.00015448,2]
[419798622,1775386245217,-150.0,0.00015454,2]
[419798623,1775386245227,-255.89,0.00015454,2]
[419798624,1775386245236,-1000.0,0.00015464,2]
[419798625,1775386245246,-1000.0,0.00015464,2]
[419798626,1775386245255,-1000.0,0.00015464,2]
[419798627,1775386245266,-1000.0,0.00015464,2]
[419798628,1775386245276,-1000.0,0.00015464,2]
[419798629,1775386245286,-150.0,0.00015467,2]
[419798630,1775386245296,-150.0,0.00015467,2]
[419798631,1775386245306,-150.0,0.00015467,2]
[419798632,1775386245316,-150.0,0.00015473,2]
[419798633,1775386245326,-150.0,0.00015477,2]
[419798634,1775386245335,-150.0,0.00015477,2]
[419798635,1775386245345,-150.0,0.00015478,2]
[419798636,1775386245355,-150.0,0.00015483,2]
[419798637,1775386245364,-150.0,0.00015489,2]
[419798638,1775386245374,-150.0,0.00015492,2]
[419798639,1775386245383,-189.74788311,0.00015492,2]
[419798640,1775386245393,-1000.0,0.00015492,2]
[419798641,1775386245402,-150.0,0.00015493,2]
[419798642,1775386245412,-500.99241895,0.00015495,2]
[419798643,1775386245422,-1000.0,0.00015495,2]
[419798644,1775386245432,-1000.0,0.00015495,2]
[419798645,1775386245441,-686.27125357,0.00015495,2]
[419798646,1775386245450,-500.0,0.00015495,2]
[419798647,1775386245460,-1000.0,0.00015495,2]
[419798648,1775386245469,-1000.0,0.00015495,2]
[419798649,1775386245479,-1000.0,0.00015495,2]
[419798650,1775386245488,-167.9673,0.000155,2]
[419798652,1775386245498,-150.0,0.000155,2]
[419798654,1775386245508,-2000.0,0.00015501,2]
[419798655,1775386245517,-150.0,0.00015503,2]
[419798656,1775386245527,-4000.0,0.00015507,2]
[419798657,1775386245536,-150.0,0.00015508,2]
[419798658,1775386245546,-150.0,0.00015508,2]
[419798659,1775386245556,-1000.0,0.00015509,2]
[419798660,1775386245565,-730.09729929,0.00015509,2]
[419798661,1775386245575,-1000.0,0.00015509,2]
[419798662,1775386245584,-1000.0,0.00015509,2]
[419798663,1775386245594,-1000.0,0.00015509,2]
[419798664,1775386245604,-150.0,0.00015511,2]
[419798665,1775386245614,-150.0,0.00015511,2]
[419798666,1775386245624,-1000.0,0.00015513,2]
[419798667,1775386245635,-1000.0,0.00015513,2]
[419798668,1775386245644,-243.80429884,0.00015513,2]
[419798669,1775386245654,-1000.0,0.00015513,2]
[419798670,1775386245664,-1000.0,0.00015513,2]
[419798671,1775386245674,-790.32775663,0.00015513,2]
[419798672,1775386245683,-1000.0,0.00015513,2]
[419798673,1775386245693,-150.0,0.00015513,2]
[419798674,1775386245703,-150.0,0.00015513,2]
[419798675,1775386245712,-6008.55421998,0.00015516,2]
[419798676,1775386245722,-150.0,0.0001552,2]
[419798677,1775386245731,-150.0,0.00015529,2]
[419798678,1775386245741,-150.0,0.00015533,2]
[419798679,1775386245751,-150.0,0.00015538,2]
[419798680,1775386245762,-150.0,0.00015538,2]
[419798681,1775386245771,-150.0,0.00015547,2]
[419798682,1775386245782,-150.0,0.00015548,2]
[419798683,1775386245792,-150.0,0.00015548,2]
[419798684,1775386245802,-150.0,0.00015556,2]
[419798685,1775386245811,-150.0,0.00015559,2]
[419798686,1775386245822,-243.30922088,0.00015561,2]
[419798687,1775386245832,-150.0,0.00015567,2]
[419798688,1775386245843,-150.0,0.00015569,2]
[419798689,1775386245852,-150.0,0.00015569,2]
[419798690,1775386245862,-150.0,0.00015573,2]
[419798691,1775386245872,-150.0,0.00015578,2]
[419798692,1775386245882,-150.0,0.00015583,2]
[419798693,1775386245892,-150.0,0.00015586,2]
[419798694,1775386245901,-200.08683734,0.000156,2]
[419798695,1775386245911,-167.9673,0.000156,2]
[419798696,1775386245922,-150.0,0.000156,2]
[419798697,1775386245932,-150.0,0.000156,2]
[419798698,1775386245942,-150.0,0.000156,2]
[419798699,1775386245952,-150.0,0.000156,2]
[419798700,1775386245962,-150.0,0.000156,2]
[419798701,1775386245972,-2000.0,0.00015601,2]
[419798702,1775386245982,-150.0,0.00015605,2]
[419798703,1775386245991,-3716.17077473,0.00015607,2]
[419798704,1775386246001,-150.0,0.00015614,2]
[419798705,1775386246011,-150.0,0.00015617,2]
[419798706,1775386246020,-150.0,0.00015622,2]
[419798707,1775386246030,-150.0,0.00015624,2]
[419798708,1775386246041,-150.0,0.00015627,2]
[419798709,1775386246050,-150.0,0.00015631,2]
[419798710,1775386246060,-150.0,0.00015631,2]
[419798711,1775386246070,-350.0,0.00015631,2]
[419798712,1775386246079,-150.0,0.00015642,2]
[419798713,1775386246089,-150.0,0.00015644,2]
[419798714,1775386246099,-5888.0,0.00015646,2]
[419798715,1775386246110,-150.0,0.00015652,2]
[419798716,1775386246120,-150.0,0.00015653,2]
[419798717,1775386246130,-150.0,0.00015661,2]
[419798718,1775386246140,-150.0,0.00015662,2]
[419798719,1775386246149,-150.0,0.00015662,2]
[419798720,1775386246160,-150.0,0.00015667,2]
[419798721,1775386246169,-150.0,0.00015669,2]
[419798722,1775386246180,-1712.24965864,0.0001568,2]
[419798723,1775386246189,-150.0,0.0001568,2]
[419798724,1775386246199,-150.0,0.0001568,2]
[419798725,1775386246208,-150.0,0.0001568,2]
[419798726,1775386246219,-150.0,0.00015687,2]
[419798727,1775386246228,-150.0,0.00015689,2]
[419798728,1775386246239,-150.0,0.00015692,2]
[419798729,1775386246249,-150.0,0.00015692,2]
[419798730,1775386246259,-350.0,0.00015699,2]
[419798731,1775386246268,-150.0,0.00015699,2]
[419798732,1775386246278,-167.9673,0.000157,2]
[419798733,1775386246288,-167.9672,0.000157,2]
[419798734,1775386246298,-150.0,0.000157,2]
[419798735,1775386246308,-2811.0,0.000157,2]
[419798736,1775386246320,-2000.0,0.00015701,2]
[419798737,1775386246330,-150.0,0.00015707,2]
[419798738,1775386246339,-150.0,0.00015711,2]
[419798739,1775386246350,-150.0,0.00015717,2]
[419798740,1775386246360,-150.0,0.00015718,2]
[419798741,1775386246372,-150.0,0.00015722,2]
[419798742,1775386246382,-1000.0,0.00015722,2]
[419798743,1775386246393,-150.0,0.00015723,2]
[419798744,1775386246403,-150.0,0.00015723,2]
[419798745,1775386246413,-150.0,0.00015724,2]
[419798746,1775386246422,-150.0,0.00015733,2]
[419798747,1775386246431,-150.0,0.00015733,2]
[419798748,1775386246440,-150.0,0.00015736,2]
[419798750,1775386246450,-626.0,0.00015741,2]
[419798752,1775386246459,-345.0,0.00015753,2]
[419798754,1775386246469,-150.0,0.00015754,2]
[419798756,1775386246479,-150.0,0.00015754,2]
[419798758,1775386246489,-6008.55421998,0.00015755,2]
[419798760,1775386246499,-150.0,0.00015755,2]
[419798762,1775386246508,-150.0,0.00015756,2]
[419798764,1775386246518,-150.0,0.00015757,2]
[419798766,1775386246528,-150.0,0.0001576,2]
[419798768,1775386246538,-175.76,0.00015763,2]
[419798770,1775386246548,-150.0,0.00015774,2]
[419798772,1775386246557,-150.0,0.00015778,2]
[419798775,1775386246567,-151.39,0.00015779,2]
[419798777,1775386246577,-151.39,0.00015779,2]
[419798779,1775386246586,-151.39,0.00015779,2]
[419798781,1775386246596,-151.39,0.00015779,2]
[419798783,1775386246605,-150.0,0.00015779,2]
[419798785,1775386246615,-150.0,0.00015785,2]
[419798787,1775386246625,-150.0,0.00015785,2]
[419798789,1775386246634,-150.0,0.00015787,2]
[419798791,1775386246643,-1000.0,0.00015789,2]
[419798793,1775386246652,-5652.216,0.00015791,2]
[419798795,1775386246661,-256.803,0.00015791,2]
[419798796,1775386246670,-150.0,0.00015791,2]
[419798797,1775386246680,-150.0,0.00015793,2]
[419798798,1775386246689,-167.9673,0.000158,2]
[419798799,1775386246699,-167.9672,0.000158,2]
[419798800,1775386246708,-150.0,0.000158,2]
[419798801,1775386246718,-150.0,0.000158,2]
[419798802,1775386246727,-2000.0,0.00015801,2]
[419798803,1775386246736,-500.0,0.00015807,2]
[419798804,1775386246746,-150.0,0.00015812,2]
[419798805,1775386246756,-150.0,0.00015813,2]
[419798806,1775386246765,-150.0,0.00015815,2]
[419798807,1775386246775,-150.0,0.00015815,2]
[419798808,1775386246784,-150.0,0.00015822,2]
[419798809,1775386246794,-210.0,0.00015823,2]
[419798810,1775386246804,-150.0,0.00015826,2]
[419798811,1775386246814,-150.0,0.00015831,2]
[419798812,1775386246925,-150.0,0.00015834,2]
[419798813,1775386246935,-166143.042,0.0001584,2]
[419798814,1775386246947,-97697.2091726,0.0001584,2]
[419798815,1775386246956,-150.0,0.0001584,2]
[419798816,1775386246967,-508.0,0.00015841,4]
[419798817,1775386246976,-150.0,0.00015844,2]
[419798818,1775386246987,-150.0,0.00015846,2]
[419798819,1775386246996,-150.0,0.00015846,2]
[419798820,1775386247006,-150.0,0.00015849,2]
[419798821,1775386247017,-1000.0,0.00015854,2]
[419798822,1775386247026,-1000.0,0.00015854,2]
[419798823,1775386247037,-1000.0,0.00015854,2]
[419798824,1775386247046,-1000.0,0.00015854,2]
[419798825,1775386247058,-1000.0,0.00015854,2]
[419798826,1775386247070,-1000.0,0.00015854,2]
[419798827,1775386247080,-1000.0,0.00015854,2]
[419798828,1775386247090,-1000.0,0.00015854,2]
[419798829,1775386247101,-266.452,0.00015854,2]
[419798830,1775386247112,-150.0,0.00015861,2]
[419798831,1775386247122,-150.0,0.00015867,2]
[419798832,1775386247131,-150.0,0.00015867,2]
[419798833,1775386247142,-150.0,0.00015868,2]
[419798834,1775386247153,-500.0,0.00015871,2]
[419798835,1775386247162,-200.0,0.00015871,2]
[419798836,1775386247172,-200.0,0.00015872,2]
[419798837,1775386247183,-500.0,0.00015872,2]
[419798838,1775386247193,-500.0,0.00015872,2]
[419798839,1775386247204,-200.0,0.00015872,2]
[419798840,1775386247214,-200.0,0.00015872,2]
[419798841,1775386247224,-500.0,0.00015873,2]
[419798842,1775386247234,-308.03873246,0.00015873,2]
[419798843,1775386247243,-500.0,0.00015873,2]
[419798844,1775386247251,-500.0,0.00015873,2]
[419798845,1775386247262,-500.0,0.00015873,2]
[419798846,1775386247271,-500.0,0.00015873,2]
[419798847,1775386247280,-500.0,0.00015873,2]
[419798848,1775386247289,-500.0,0.00015873,2]
[419798849,1775386247298,-180.00096908,0.00015873,2]
[419798850,1775386247307,-339.79133416,0.00015873,2]
[419798851,1775386247316,-500.0,0.00015873,2]
[419798852,1775386247325,-500.0,0.00015873,2]
[419798853,1775386247335,-500.0,0.00015873,2]
[419798854,1775386247343,-500.0,0.00015873,2]
[419798855,1775386247352,-500.0,0.00015873,2]
[419798856,1775386247362,-385.86149772,0.00015873,2]
[419798857,1775386247371,-500.0,0.00015873,2]
[419798858,1775386247380,-500.0,0.00015873,2]
[419798859,1775386247389,-211.04857142,0.00015873,2]
[419798860,1775386247398,-500.0,0.00015873,2]
[419798861,1775386247408,-500.0,0.00015873,2]
[419798862,1775386247417,-500.0,0.00015873,2]
[419798863,1775386247428,-150.0,0.00015877,2]
[419798864,1775386247438,-150.0,0.00015877,2]
[419798865,1775386247448,-150.0,0.00015887,2]
[419798866,1775386247458,-150.0,0.00015889,2]
[419798867,1775386247469,-150.0,0.0001589,2]
[419798868,1775386247478,-500.0,0.0001589,2]
[419798869,1775386247490,-500.0,0.0001589,2]
[419798870,1775386247501,-1000.0,0.0001589,2]
[419798871,1775386247512,-150.0,0.00015893,2]
[419798872,1775386247523,-4000.0,0.00015895,2]
[419798873,1775386247532,-150.0,0.00015896,2]
[419798874,1775386247542,-6814.8132402,0.00015897,2]
[419798875,1775386247553,-500.0,0.00015899,2]
[419798876,1775386247562,-500.0,0.00015899,2]
[419798877,1775386247572,-500.0,0.00015899,2]
[419798878,1775386247581,-5000.0,0.000159,2]
[419798879,1775386247590,-167.9673,0.000159,2]
[419798880,1775386247600,-24594.73927756,0.000159,2]
[419798881,1775386247609,-150.0,0.000159,2]
[419798882,1775386247619,-495.38791884,0.000159,2]
[419798883,1775386247628,-1066.0,0.000159,5]
[419798884,1775386247637,-2000.0,0.00015901,2]
[419798885,1775386247647,-150.0,0.00015906,2]
[419798886,1775386247657,-150.0,0.00015908,2]
[419798887,1775386247666,-150.0,0.00015908,2]
[419798888,1775386247675,-150.0,0.00015911,2]
[419798889,1775386247684,-258.6183407,0.00015914,5]
[419798890,1775386247694,-150.0,0.0001592,2]
[419798891,1775386247704,-150.0,0.00015925,2]
[419798892,1775386247713,-150.0,0.0001593,2]
[419798893,1775386247723,-150.0,0.00015933,2]
[419798894,1775386247733,-150.0,0.00015938,2]
[419798895,1775386247743,-150.0,0.00015938,2]
[419798896,1775386247752,-150.0,0.00015944,2]
[419798897,1775386247762,-150.0,0.00015945,2]
[419798898,1775386247771,-150.0,0.00015947,2]
[419798899,1775386247781,-626.0,0.00015948,2]
[419798900,1775386247790,-626.0,0.00015952,2]
[419798901,1775386247799,-5067.0,0.00015953,2]
[419798902,1775386247809,-150.0,0.00015956,2]
[419798903,1775386247818,-5067.0,0.00015958,2]
[419798904,1775386247827,-150.0,0.00015962,2]
[419798905,1775386247836,-150.0,0.00015965,2]
[419798906,1775386247846,-150.0,0.00015969,2]
[419798907,1775386247855,-150.0,0.00015969,2]
[419798908,1775386247865,-150.0,0.00015971,2]
[419798909,1775386247874,-503.0,0.00015973,2]
[419798910,1775386247883,-627.70930647,0.00015973,2]
[419798911,1775386247892,-500.0,0.00015973,2]
[419798912,1775386247902,-500.0,0.00015973,2]
[419798913,1775386247912,-150.0,0.00015973,2]
[419798914,1775386247922,-150.0,0.00015978,2]